fUST/lending_fUST_20241115
["ID","MTS","AMOUNT","RATE_DAILY","PERIOD"]
[342240584,1731625841457,-546.6,0.00016438,2]
[342240585,1731625841469,-1177.72,0.00016438,2]
[342240586,1731625841478,-2628.7,0.00016438,2]
[342240587,1731625841488,-500.0,0.00016438,2]
[342240588,1731625841497,-500.0,0.00016438,2]
[342240589,1731625841507,-500.0,0.00016438,2]
[342240590,1731625841520,-1247.55,0.00016438,2]
[342240591,1731625841530,-898.32,0.00016438,2]
[342240592,1731625841539,-291.25353766,0.00016438,2]
[342240593,1731625841548,-500.0,0.00016438,2]
[342240594,1731625841557,-586.88999281,0.00016438,2]
[342240595,1731625841566,-1000.0,0.00016438,2]
[342240596,1731625841576,-500.0,0.00016438,2]
[342240597,1731625841585,-867.26,0.00016438,2]
[342240598,1731625841595,-500.0,0.00016438,2]
[342240599,1731625841605,-816.73,0.00016438,2]
[342240600,1731625841615,-500.0,0.00016438,2]
[342240601,1731625841624,-500.0,0.00016438,2]
[342240602,1731625841633,-560.30079288,0.00016438,2]
[342240603,1731625841642,-527.65281755,0.00016438,2]
[342240604,1731625841652,-500.0,0.00016438,2]
[342240605,1731625841661,-729.86,0.00016438,2]
[342240606,1731625841670,-500.0,0.00016438,2]
[342240607,1731625841679,-500.0,0.00016438,2]
[342240608,1731625841689,-500.0,0.00016438,2]
[342240609,1731625841698,-500.0,0.00016438,2]
[342240610,1731625841708,-500.0,0.00016438,2]
[342240611,1731625841718,-500.0,0.00016438,2]
[342240612,1731625841727,-407.05051347,0.00016438,2]
[342240613,1731625841737,-1131.97,0.00016438,2]
[342240614,1731625841747,-1172.18,0.00016438,2]
[342240615,1731625841756,-500.0,0.00016438,2]
[342240616,1731625841770,-500.0,0.00016438,2]
[342240617,1731625841780,-607.12207919,0.00016438,2]
[342240618,1731625841791,-5751.22147058,0.00016438,2]
[342240619,1731625841929,-27072.73852942,0.00016438,2]
[342240620,1731625841939,-500.0,0.00016438,2]
[342240621,1731625841949,-500.0,0.00016438,2]
[342240622,1731625841959,-671.75,0.00016438,2]
[342240623,1731625841969,-500.0,0.00016438,2]
[342240624,1731625841979,-500.0,0.00016438,2]
[342240625,1731625841989,-950.2,0.00016438,2]
[342240626,1731625841999,-500.0,0.00016438,2]
[342240627,1731625842008,-500.0,0.00016438,2]
[342240628,1731625842023,-500.0,0.00016438,2]
[342240629,1731625842033,-500.0,0.00016438,2]
[342240630,1731625842042,-500.0,0.00016438,2]
[342240631,1731625842051,-500.0,0.00016438,2]
[342240632,1731625842061,-500.0,0.00016438,2]
[342240633,1731625842071,-175.053,0.00016439,2]
[342240634,1731625842081,-270.799,0.00016439,2]
[342240635,1731625842091,-204.512,0.00016439,2]
[342240636,1731625842100,-250.0,0.00016439,2]
[342240637,1731625842109,-151.805,0.00016439,2]
[342240638,1731625842118,-250.0,0.00016439,2]
[342240639,1731625842128,-152.14,0.00016439,2]
[342240640,1731625842137,-541.001,0.00016439,2]
[342240641,1731625842147,-2387.0,0.00016439,2]
[342240642,1731625842155,-1113.0,0.00016439,2]
[342240643,1731625842164,-500.0,0.00016473,2]
[342240644,1731625842174,-500.0,0.00016473,2]
[342240645,1731625842188,-500.0,0.00016473,2]
[342240646,1731625842198,-278.3927289,0.00016552,2]
[342240647,1731625842207,-159.6311182,0.000166,2]
[342240648,1731625842217,-153.0,0.000166,2]
[342240649,1731625842227,-303.9936668,0.000166,2]
[342240650,1731625842236,-153.0,0.000166,2]
[342240651,1731625842251,-200.08,0.00016602,2]
[342240652,1731625842261,-2179.78813017,0.00016612,2]
[342240653,1731625842272,-572.910533,0.00016615,2]
[342240654,1731625842281,-150.0,0.000167,2]
[342240655,1731625842291,-150.02,0.00016712,2]
[342240656,1731625842301,-150.02,0.00016712,2]
[342240657,1731625842311,-848.53851,0.00016712,2]
[342240658,1731625842320,-500.0,0.00016712,2]
[342240659,1731625842329,-514.085538,0.00016712,2]
[342240660,1731625842339,-150.02,0.00016712,2]
[342240661,1731625842348,-500.0,0.00016712,2]
[342240662,1731625842359,-651.14468784,0.00016712,2]
[342240663,1731625842369,-151.0,0.00016712,2]
[342240664,1731625842380,-151.0,0.00016712,2]
[342240665,1731625842399,-151.0,0.00016712,2]
[342240666,1731625842416,-151.0,0.00016712,2]
[342240667,1731625842426,-151.0,0.00016712,2]
[342240668,1731625842436,-151.0,0.00016712,2]
[342240669,1731625842446,-525.61326885,0.00016712,2]
[342240670,1731625842456,-1749.837772,0.00016712,2]
[342240671,1731625842465,-1749.837772,0.00016712,2]
[342240672,1731625842475,-151.0,0.00016712,2]
[342240673,1731625842484,-819.1,0.00016712,2]
[342240674,1731625842494,-500.0,0.00016712,2]
[342240675,1731625842503,-500.0,0.00016712,2]
[342240676,1731625842514,-557.46,0.00016712,2]
[342240677,1731625842524,-374.26662894,0.00016712,2]
[342240678,1731625842533,-320.785045,0.00016712,2]
[342240679,1731625842542,-320.785045,0.00016712,2]
[342240680,1731625842551,-500.0,0.00016712,2]
[342240681,1731625842561,-172.51554494,0.00016712,2]
[342240682,1731625842571,-500.0,0.00016712,2]
[342240683,1731625842581,-500.0,0.00016712,2]
[342240684,1731625842591,-776.67,0.00016712,2]
[342240685,1731625842602,-533.04152695,0.00016712,2]
[342240686,1731625842612,-500.0,0.00016712,2]
[342240687,1731625842622,-500.0,0.00016712,2]
[342240688,1731625842632,-500.0,0.00016712,2]
[342240689,1731625842642,-500.0,0.00016712,2]
[342240690,1731625842651,-503.23241832,0.00016712,2]
[342240691,1731625842661,-500.0,0.00016712,2]
[342240692,1731625842671,-500.0,0.00016712,2]
[342240693,1731625842681,-500.0,0.00016712,2]
[342240694,1731625842690,-500.0,0.00016712,2]
[342240695,1731625842699,-500.0,0.00016712,2]
[342240696,1731625842709,-500.0,0.00016712,2]
[342240697,1731625842718,-534.21434231,0.00016712,2]
[342240698,1731625842728,-500.0,0.00016712,2]
[342240699,1731625842737,-200.65475835,0.00016712,2]
[342240700,1731625842746,-500.0,0.00016712,2]
[342240701,1731625842755,-528.7526415,0.00016712,2]
[342240702,1731625842768,-500.0,0.00016712,2]
[342240703,1731625842777,-500.0,0.00016712,2]
[342240704,1731625842786,-500.0,0.00016712,2]
[342240705,1731625842796,-542.11,0.00016712,2]
[342240706,1731625842806,-500.0,0.00016712,2]
[342240707,1731625842815,-500.0,0.00016712,2]
[342240708,1731625842824,-500.0,0.00016712,2]
[342240709,1731625842833,-269.30985514,0.00016712,2]
[342240710,1731625842847,-364.43014486,0.00016712,2]
[342240711,1731625842857,-500.0,0.00016712,2]
[342240712,1731625842866,-500.0,0.00016712,2]
[342240713,1731625842875,-495.56995514,0.00016712,2]
[342240718,1731625843921,-500.0,0.00016438,2]
[342240719,1731625843932,-500.0,0.00016438,2]
[342240720,1731625843942,-4.43004486,0.00016712,2]
[342240721,1731625843951,-500.0,0.00016712,2]
[342240722,1731625843960,-500.0,0.00016712,2]
[342240723,1731625843970,-729.93,0.00016712,2]
[342240724,1731625843979,-779.19,0.00016712,2]
[342240725,1731625843988,-718.92,0.00016712,2]
[342240726,1731625843998,-500.0,0.00016712,2]
[342240727,1731625844008,-500.0,0.00016712,2]
[342240728,1731625844019,-500.0,0.00016712,2]
[342240729,1731625844028,-708.57,0.00016712,2]
[342240730,1731625844037,-671.62,0.00016712,2]
[342240731,1731625844047,-500.0,0.00016712,2]
[342240732,1731625844056,-500.0,0.00016712,2]
[342240733,1731625844066,-500.0,0.00016712,2]
[342240734,1731625844075,-200.0,0.00016712,2]
[342240735,1731625844084,-500.0,0.00016712,2]
[342240736,1731625844093,-720.3,0.00016712,2]
[342240737,1731625844102,-500.0,0.00016712,2]
[342240738,1731625844111,-489.76711227,0.00016712,2]
[342240739,1731625844123,-10.23288773,0.00016712,2]
[342240740,1731625844132,-500.0,0.00016712,2]
[342240741,1731625844142,-764.37,0.00016712,2]
[342240742,1731625844151,-500.0,0.00016712,2]
[342240743,1731625844161,-500.0,0.00016712,2]
[342240744,1731625844170,-785.22,0.00016712,2]
[342240745,1731625844179,-500.0,0.00016712,2]
[342240746,1731625844188,-617.54183635,0.00016712,2]
[342240747,1731625844198,-500.0,0.00016712,2]
[342240748,1731625844207,-500.0,0.00016712,2]
[342240749,1731625844216,-182.45188666,0.00016712,2]
[342240750,1731625844225,-500.0,0.00016712,2]
[342240751,1731625844235,-500.0,0.00016712,2]
[342240752,1731625844244,-500.0,0.00016712,2]
[342240753,1731625844253,-500.0,0.00016712,2]
[342240754,1731625844263,-772.49,0.00016712,2]
[342240755,1731625844277,-500.0,0.00016712,2]
[342240756,1731625844291,-1052.42,0.00016712,2]
[342240757,1731625844301,-500.0,0.00016712,2]
[342240758,1731625844310,-500.0,0.00016712,2]
[342240759,1731625844319,-500.0,0.00016712,2]
[342240760,1731625844328,-500.0,0.00016712,2]
[342240761,1731625844338,-500.0,0.00016712,2]
[342240762,1731625844348,-330.10768271,0.00016712,2]
[342240763,1731625844357,-500.0,0.00016712,2]
[342240764,1731625844366,-500.0,0.00016712,2]
[342240765,1731625844376,-510.74,0.00016712,2]
[342240766,1731625844388,-500.0,0.00016712,2]
[342240767,1731625844398,-151.0,0.00016712,2]
[342240768,1731625844407,-593.3,0.00016712,2]
[342240769,1731625844417,-500.0,0.00016712,2]
[342240770,1731625844426,-500.0,0.00016712,2]
[342240771,1731625844437,-802.11,0.00016712,2]
[342240772,1731625844448,-500.0,0.00016712,2]
[342240773,1731625844458,-686.12,0.00016712,2]
[342240774,1731625844470,-500.0,0.00016712,2]
[342240775,1731625844483,-500.0,0.00016712,2]
[342240776,1731625844492,-500.0,0.00016712,2]
[342240777,1731625844501,-500.0,0.00016712,2]
[342240778,1731625844511,-716.78,0.00016712,2]
[342240779,1731625844523,-29.51957122,0.00016712,2]
[342240780,1731625844551,-470.48042878,0.00016712,2]
[342240781,1731625844561,-500.0,0.00016712,2]
[342240782,1731625844571,-500.0,0.00016712,2]
[342240783,1731625844579,-500.0,0.00016712,2]
[342240784,1731625844589,-458.38476585,0.00016712,2]
[342240796,1731625998421,205.97,0.00011,2]
[342240802,1731626675475,196.15,0.00011,2]
[342240822,1731626926691,343.32842003,0.00024,120]
[342240823,1731626928867,150.0,0.0002102,62]
[342240824,1731626929944,192.28709465,0.00027,120]
[342240859,1731627031895,-2162.12347277,0.000131,2]
[342240862,1731627031905,-196.204,0.000131,2]
[342240863,1731627031916,-270.418398,0.00014393,2]
[342240865,1731627031925,-4.14300749,0.00014407,2]
[342240868,1731627031937,-295.85699251,0.00014407,2]
[342240870,1731627031946,-300.0,0.00014407,2]
[342240872,1731627031956,-134.34296749,0.00014408,2]
[342240873,1731627031966,-970.28816098,0.00014408,2]
[342240875,1731627034329,-722.59937,0.00014408,2]
[342240876,1731627034342,-9266.13154553,0.00014408,2]
[342240877,1731627034353,-864.6813198,0.0001446,2]
[342240878,1731627034363,-849.8162796,0.00014513,2]
[342240879,1731627034373,-250.0,0.00014575,2]
[342240880,1731627034382,-556.50236968,0.00014676,2]
[342240916,1731627037798,-385.25236332,0.00014676,2]
[342240918,1731627037808,-479.42895647,0.00014727,2]
[342240922,1731627037850,-527.88775493,0.00014727,2]
[342240924,1731627037860,-196.208,0.000152,2]
[342240926,1731627037870,-941.754733,0.00015361,2]
[342240928,1731627037880,-208.22937285,0.00015592,2]
[342240930,1731627037889,-420.0,0.00015778,2]
[342240931,1731627037899,-420.0,0.00015848,2]
[342240933,1731627037910,-212.2422435,0.00015978,2]
[342240935,1731627037919,-941.754733,0.00016046,2]
[342240937,1731627037929,-465.02672717,0.00016107,2]
[342240939,1731627037938,-212.2422435,0.00016178,2]
[342240941,1731627037948,-967.46798513,0.00016338,2]
[342240943,1731627037958,-204.82516867,0.00016338,2]
[342240945,1731627037967,-7391.88633785,0.00016338,2]
[342240947,1731627037978,-3351.35078687,0.00016338,2]
[342240949,1731627037995,-12856.35310952,0.00016338,2]
[342240957,1731627039730,-578.39683855,0.00016338,2]
[342240958,1731627039741,-1000.0,0.00016338,2]
[342240959,1731627039753,-153.0,0.00016378,2]
[342240960,1731627039762,-212.2422435,0.00016378,2]
[342240961,1731627039771,-3000.0,0.000164,2]
[342240962,1731627039781,-3000.0,0.0001641,2]
[342240963,1731627039790,-500.0,0.00016413,2]
[342240964,1731627039799,-500.0,0.00016437,2]
[342240965,1731627039808,-500.0,0.00016437,2]
[342240966,1731627039821,-500.0,0.00016437,2]
[342240967,1731627039830,-500.0,0.00016437,2]
[342240968,1731627039839,-500.0,0.00016437,2]
[342240969,1731627039849,-500.0,0.00016437,2]
[342240970,1731627039858,-500.0,0.00016437,2]
[342240971,1731627039867,-292.77531584,0.00016437,2]
[342240972,1731627039876,-500.0,0.00016437,2]
[342240973,1731627039886,-488.28102492,0.00016437,2]
[342240974,1731627039895,-500.0,0.00016437,2]
[342240975,1731627039904,-500.0,0.00016437,2]
[342240976,1731627039913,-500.0,0.00016437,2]
[342240977,1731627039923,-500.0,0.00016437,2]
[342240978,1731627039933,-500.0,0.00016437,2]
[342240979,1731627039942,-500.0,0.00016437,2]
[342240980,1731627039952,-500.0,0.00016437,2]
[342240981,1731627039961,-500.0,0.00016437,2]
[342240982,1731627039970,-500.0,0.00016437,2]
[342240983,1731627039979,-500.0,0.00016437,2]
[342240984,1731627039989,-500.0,0.00016437,2]
[342240985,1731627039998,-500.0,0.00016437,2]
[342240986,1731627040008,-500.0,0.00016437,2]
[342240987,1731627040017,-235.36110579,0.00016437,2]
[342240988,1731627040026,-500.0,0.00016437,2]
[342240989,1731627040035,-500.0,0.00016437,2]
[342240990,1731627040045,-500.0,0.00016437,2]
[342240991,1731627040054,-500.0,0.00016437,2]
[342240992,1731627040063,-500.0,0.00016437,2]
[342240993,1731627040078,-500.0,0.00016437,2]
[342240994,1731627040087,-454.91443877,0.00016437,2]
[342240995,1731627040096,-500.0,0.00016437,2]
[342240996,1731627040105,-500.0,0.00016437,2]
[342240997,1731627040114,-500.0,0.00016437,2]
[342240998,1731627040124,-500.0,0.00016437,2]
[342240999,1731627040133,-500.0,0.00016437,2]
[342241000,1731627040142,-500.0,0.00016437,2]
[342241001,1731627040152,-500.0,0.00016437,2]
[342241002,1731627040161,-500.0,0.00016437,2]
[342241003,1731627040171,-500.0,0.00016437,2]
[342241004,1731627040180,-154.37526852,0.00016437,2]
[342241005,1731627040190,-218.23159299,0.00016437,2]
[342241006,1731627040200,-167.90568972,0.00016437,2]
[342241007,1731627040209,-153.09244673,0.00016437,2]
[342241008,1731627040219,-500.0,0.00016437,2]
[342241009,1731627040227,-208.41009366,0.00016437,2]
[342241010,1731627040236,-500.0,0.00016437,2]
[342241011,1731627040245,-500.0,0.00016438,2]
[342241012,1731627040255,-500.0,0.00016438,2]
[342241013,1731627040264,-500.0,0.00016438,2]
[342241014,1731627040273,-500.0,0.00016438,2]
[342241015,1731627040282,-507.58483009,0.00016438,2]
[342241016,1731627040291,-500.0,0.00016438,2]
[342241017,1731627040300,-500.0,0.00016438,2]
[342241018,1731627040309,-500.0,0.00016438,2]
[342241019,1731627040324,-500.0,0.00016438,2]
[342241020,1731627040333,-592.52911166,0.00016438,2]
[342241021,1731627040342,-500.0,0.00016438,2]
[342241022,1731627040351,-518.72645147,0.00016438,2]
[342241023,1731627040360,-500.0,0.00016438,2]
[342241024,1731627040369,-500.0,0.00016438,2]
[342241025,1731627040378,-516.75084509,0.00016438,2]
[342241026,1731627040387,-500.0,0.00016438,2]
[342241027,1731627040396,-300.0,0.00016438,2]
[342241028,1731627040406,-417.42615058,0.00016438,2]
[342241029,1731627040415,-500.0,0.00016438,2]
[342241031,1731627040424,-189.11337286,0.00016438,2]
[342241032,1731627040433,-510.07394193,0.00016438,2]
[342241034,1731627040442,-500.0,0.00016438,2]
[342241036,1731627040452,-527.59144512,0.00016438,2]
[342241038,1731627040461,-234.09136533,0.00016438,2]
[342241040,1731627040471,-500.0,0.00016438,2]
[342241042,1731627040480,-200.0,0.00016438,2]
[342241043,1731627040489,-509.87230151,0.00016438,2]
[342241045,1731627040499,-755.92,0.00016438,2]
[342241047,1731627040508,-500.0,0.00016438,2]
[342241049,1731627040517,-500.0,0.00016438,2]
[342241051,1731627040526,-500.0,0.00016438,2]
[342241052,1731627040535,-500.0,0.00016438,2]
[342241054,1731627040545,-701.94,0.00016438,2]
[342241056,1731627040554,-500.0,0.00016438,2]
[342241057,1731627040563,-500.0,0.00016438,2]
[342241058,1731627040576,-500.0,0.00016438,2]
[342241060,1731627040586,-494.77500703,0.00016438,2]
[342241062,1731627040595,-500.0,0.00016438,2]
[342241063,1731627040604,-412.8549594,0.00016438,2]
[342241064,1731627040613,-500.0,0.00016438,2]
[342241065,1731627040623,-500.0,0.00016438,2]
[342241066,1731627040631,-500.0,0.00016438,2]
[342241067,1731627040641,-514.42789034,0.00016438,2]
[342241068,1731627040650,-500.0,0.00016438,2]
[342241069,1731627040659,-500.0,0.00016438,2]
[342241070,1731627040668,-500.0,0.00016438,2]
[342241071,1731627040678,-500.0,0.00016438,2]
[342241072,1731627040687,-500.0,0.00016438,2]
[342241073,1731627040697,-500.0,0.00016438,2]
[342241074,1731627040706,-500.0,0.00016438,2]
[342241075,1731627040715,-263.32246418,0.00016438,2]
[342241076,1731627040724,-500.0,0.00016438,2]
[342241077,1731627040734,-500.0,0.00016438,2]
[342241078,1731627040746,-500.0,0.00016438,2]
[342241079,1731627040755,-500.0,0.00016438,2]
[342241080,1731627040764,-649.78,0.00016438,2]
[342241081,1731627040773,-500.0,0.00016438,2]
[342241083,1731627040782,-500.0,0.00016438,2]
[342241084,1731627040794,-500.0,0.00016438,2]
[342241085,1731627040803,-756.1,0.00016438,2]
[342241086,1731627040812,-518.85047428,0.00016438,2]
[342241088,1731627040825,-500.0,0.00016438,2]
[342241090,1731627040834,-501.5841235,0.00016438,2]
[342241092,1731627040843,-500.0,0.00016438,2]
[342241094,1731627040853,-500.0,0.00016438,2]
[342241096,1731627040862,-506.99305801,0.00016438,2]
[342241097,1731627040871,-500.0,0.00016438,2]
[342241099,1731627040881,-500.0,0.00016438,2]
[342241101,1731627040890,-500.0,0.00016438,2]
[342241103,1731627040900,-500.0,0.00016438,2]
[342241104,1731627040909,-500.0,0.00016438,2]
[342241106,1731627040918,-500.0,0.00016438,2]
[342241108,1731627040927,-500.0,0.00016438,2]
[342241110,1731627040936,-500.0,0.00016438,2]
[342241111,1731627040946,-500.0,0.00016438,2]
[342241112,1731627040955,-500.0,0.00016438,2]
[342241113,1731627040964,-500.0,0.00016438,2]
[342241114,1731627040973,-501.72671402,0.00016438,2]
[342241115,1731627040982,-500.0,0.00016438,2]
[342241116,1731627040991,-500.0,0.00016438,2]
[342241117,1731627041000,-221.96880814,0.00016438,2]
[342241118,1731627041009,-500.0,0.00016438,2]
[342241119,1731627041019,-500.0,0.00016438,2]
[342241120,1731627041028,-843.5,0.00016438,2]
[342241121,1731627041037,-710.77,0.00016438,2]
[342241122,1731627041046,-500.0,0.00016438,2]
[342241123,1731627041055,-679.85,0.00016438,2]
[342241124,1731627041064,-500.0,0.00016438,2]
[342241125,1731627041075,-500.0,0.00016438,2]
[342241126,1731627041084,-500.0,0.00016438,2]
[342241127,1731627041094,-500.0,0.00016438,2]
[342241128,1731627041102,-500.0,0.00016438,2]
[342241129,1731627041111,-931.44,0.00016438,2]
[342241130,1731627041118,-500.0,0.00016438,2]
[342241131,1731627041124,-500.0,0.00016438,2]
[342241132,1731627041130,-500.0,0.00016438,2]
[342241133,1731627041136,-636.49,0.00016438,2]
[342241134,1731627041142,-500.0,0.00016438,2]
[342241135,1731627041148,-1158.45,0.00016438,2]
[342241136,1731627041157,-500.0,0.00016438,2]
[342241137,1731627041167,-500.0,0.00016438,2]
[342241138,1731627041176,-693.15,0.00016438,2]
[342241139,1731627041185,-505.9719757,0.00016438,2]
[342241140,1731627041194,-500.0,0.00016438,2]
[342241141,1731627041203,-601.76,0.00016438,2]
[342241142,1731627041213,-500.0,0.00016438,2]
[342241143,1731627041221,-500.0,0.00016438,2]
[342241144,1731627041231,-500.0,0.00016438,2]
[342241145,1731627041240,-500.0,0.00016438,2]
[342241146,1731627041249,-500.0,0.00016438,2]
[342241147,1731627041258,-721.5,0.00016438,2]
[342241148,1731627041268,-500.0,0.00016438,2]
[342241149,1731627041277,-500.0,0.00016438,2]
[342241150,1731627041286,-499.28979392,0.00016438,2]
[342241151,1731627041295,-500.0,0.00016438,2]
[342241152,1731627041304,-500.0,0.00016438,2]
[342241153,1731627041314,-500.0,0.00016438,2]
[342241154,1731627041327,-500.0,0.00016438,2]
[342241155,1731627041336,-670.35,0.00016438,2]
[342241156,1731627041346,-500.0,0.00016438,2]
[342241157,1731627041355,-500.0,0.00016438,2]
[342241158,1731627041364,-500.0,0.00016438,2]
[342241159,1731627041373,-500.0,0.00016438,2]
[342241160,1731627041383,-500.0,0.00016438,2]
[342241161,1731627041392,-500.0,0.00016438,2]
[342241162,1731627041401,-500.0,0.00016438,2]
[342241163,1731627041410,-500.0,0.00016438,2]
[342241164,1731627041419,-307.31471747,0.00016438,2]
[342241165,1731627041428,-500.0,0.00016438,2]
[342241166,1731627041437,-500.0,0.00016438,2]
[342241167,1731627041447,-500.0,0.00016438,2]
[342241168,1731627041456,-500.0,0.00016438,2]
[342241169,1731627041465,-500.0,0.00016438,2]
[342241170,1731627041474,-500.0,0.00016438,2]
[342241171,1731627041483,-502.5763128,0.00016438,2]
[342241172,1731627041492,-740.62,0.00016438,2]
[342241173,1731627041502,-500.0,0.00016438,2]
[342241174,1731627041511,-500.0,0.00016438,2]
[342241175,1731627041520,-500.0,0.00016438,2]
[342241176,1731627041529,-728.95,0.00016438,2]
[342241177,1731627041538,-565.77379087,0.00016438,2]
[342241178,1731627041547,-545.5906982,0.00016438,2]
[342241179,1731627041556,-500.0,0.00016438,2]
[342241180,1731627041565,-500.0,0.00016438,2]
[342241181,1731627041581,-500.0,0.00016438,2]
[342241182,1731627041590,-500.0,0.00016438,2]
[342241183,1731627041599,-500.0,0.00016438,2]
[342241184,1731627041608,-985.55,0.00016438,2]
[342241185,1731627041617,-500.0,0.00016438,2]
[342241186,1731627041627,-500.0,0.00016438,2]
[342241187,1731627041636,-500.0,0.00016438,2]
[342241188,1731627041645,-500.0,0.00016438,2]
[342241189,1731627041654,-578.46785895,0.00016438,2]
[342241190,1731627041663,-500.0,0.00016438,2]
[342241191,1731627041671,-500.0,0.00016438,2]
[342241192,1731627041681,-611.57,0.00016438,2]
[342241193,1731627041690,-500.0,0.00016438,2]
[342241194,1731627041699,-500.0,0.00016438,2]
[342241195,1731627041708,-500.0,0.00016438,2]
[342241196,1731627041717,-500.0,0.00016438,2]
[342241197,1731627041726,-500.0,0.00016438,2]
[342241198,1731627041736,-500.0,0.00016438,2]
[342241199,1731627041748,-614.22243087,0.00016438,2]
[342241200,1731627041757,-564.69,0.00016438,2]
[342241201,1731627041766,-1000.0,0.00016438,2]
[342241202,1731627041775,-500.0,0.00016438,2]
[342241203,1731627041785,-500.0,0.00016438,2]
[342241204,1731627041795,-500.0,0.00016438,2]
[342241205,1731627041804,-500.0,0.00016438,2]
[342241206,1731627041815,-500.0,0.00016438,2]
[342241207,1731627041830,-500.0,0.00016438,2]
[342241208,1731627041839,-500.0,0.00016438,2]
[342241209,1731627041848,-731.94,0.00016438,2]
[342241210,1731627041857,-500.0,0.00016438,2]
[342241211,1731627041867,-505.49586885,0.00016438,2]
[342241212,1731627041876,-433.20900308,0.00016438,2]
[342241213,1731627041885,-500.0,0.00016438,2]
[342241214,1731627041895,-677.89,0.00016438,2]
[342241215,1731627041905,-500.0,0.00016438,2]
[342241216,1731627041914,-500.0,0.00016438,2]
[342241217,1731627041924,-500.0,0.00016438,2]
[342241218,1731627041933,-500.0,0.00016438,2]
[342241219,1731627041943,-517.63272025,0.00016438,2]
[342241220,1731627041952,-650.36,0.00016438,2]
[342241221,1731627041961,-500.0,0.00016438,2]
[342241222,1731627041971,-500.0,0.00016438,2]
[342241223,1731627041980,-500.0,0.00016438,2]
[342241224,1731627041990,-500.0,0.00016438,2]
[342241225,1731627041999,-503.05542206,0.00016438,2]
[342241226,1731627042009,-500.0,0.00016438,2]
[342241227,1731627042018,-500.0,0.00016438,2]
[342241228,1731627042028,-500.0,0.00016438,2]
[342241229,1731627042038,-500.0,0.00016438,2]
[342241230,1731627042048,-1111.37,0.00016438,2]
[342241231,1731627042058,-500.0,0.00016438,2]
[342241232,1731627042067,-2904.14,0.00016438,2]
[342241233,1731627042084,-500.0,0.00016438,2]
[342241234,1731627042095,-620.38940878,0.00016438,2]
[342241235,1731627042105,-500.0,0.00016438,2]
[342241236,1731627042114,-500.0,0.00016438,2]
[342241237,1731627042124,-1917.2,0.00016438,2]
[342241238,1731627042134,-971.72,0.00016438,2]
[342241239,1731627042144,-500.0,0.00016438,2]
[342241240,1731627042154,-597.91,0.00016438,2]
[342241241,1731627042164,-500.0,0.00016438,2]
[342241242,1731627042174,-500.0,0.00016438,2]
[342241243,1731627042186,-792.5,0.00016438,2]
[342241244,1731627042196,-1396.78,0.00016438,2]
[342241245,1731627042206,-831.41,0.00016438,2]
[342241246,1731627042216,-500.0,0.00016438,2]
[342241247,1731627042226,-500.0,0.00016438,2]
[342241248,1731627042236,-500.0,0.00016438,2]
[342241249,1731627042245,-1644.29,0.00016438,2]